[Event "Live Chess"]
[Site "Chess.com"]
[Date "2024.06.01"]
[Round "-"]
[White "gobbles19"]
[Black "OurKnightAtTheOpera"]
[Result "1-0"]
[WhiteElo "2204"]
[BlackElo "2025"]
[TimeControl "300"]
[EndTime "11:40:18 PDT"]
[Termination "gobbles19 won by resignation"]

1. e4 {[%clk 0:04:57.6]} 1... d5 {[%clk 0:04:59.2]} 2. exd5 {[%clk 0:04:55.6]}
2... Nf6 {[%clk 0:04:58.3]} 3. Bb5+ {[%clk 0:04:53.7]} 3... Bd7 {[%clk
0:04:54.1]} 4. Be2 {[%clk 0:04:52.7]} 4... Nxd5 {[%clk 0:04:53.3]} 5. d4 {[%clk
0:04:51.9]} 5... Bf5 {[%clk 0:04:52.1]} 6. Nf3 {[%clk 0:04:48.8]} 6... e6 {[%clk
0:04:51]} 7. c4 {[%clk 0:04:45.1]} 7... Nb4 {[%clk 0:04:47]} 8. Na3 {[%clk
0:04:43.4]} 8... Nd7 {[%clk 0:04:18.2]} 9. O-O {[%clk 0:04:39.3]} 9... Be7
{[%clk 0:04:12]} 10. Bf4 {[%clk 0:04:16.8]} 10... c6 {[%clk 0:04:04.9]} 11. Qb3
{[%clk 0:04:04.2]} 11... O-O {[%clk 0:03:57.5]} 12. Rac1 {[%clk 0:03:59.8]}
12... a5 {[%clk 0:03:54.5]} 13. c5 {[%clk 0:03:35]} 13... Nd5 {[%clk 0:03:52.2]}
14. Bd2 {[%clk 0:03:29.1]} 14... Qc7 {[%clk 0:03:43.5]} 15. g3 {[%clk
0:03:20.9]} 15... Bh3 {[%clk 0:03:32.2]} 16. Rfe1 {[%clk 0:03:15.8]} 16... e5
{[%clk 0:03:31.4]} 17. Nxe5 {[%clk 0:02:44]} 17... Nxe5 {[%clk 0:03:30.4]} 18.
dxe5 {[%clk 0:02:43.1]} 18... a4 {[%clk 0:02:53.3]} 19. Qc2 {[%clk 0:02:31]}
19... Qxe5 {[%clk 0:02:50.7]} 20. Bg4 {[%clk 0:02:22.1]} 20... Qxe1+ {[%clk
0:02:32.4]} 21. Rxe1 {[%clk 0:02:22]} 21... Bxg4 {[%clk 0:02:31.9]} 22. Qc4
{[%clk 0:01:57.1]} 22... Be6 {[%clk 0:02:26.9]} 23. Qc1 {[%clk 0:01:40.2]} 23...
Rfd8 {[%clk 0:02:20.2]} 24. Bg5 {[%clk 0:01:35.5]} 24... Nf6 {[%clk 0:02:07.4]}
25. Nc4 {[%clk 0:01:33.5]} 25... Rd5 {[%clk 0:01:54.1]} 26. Bxf6 {[%clk
0:01:24.1]} 26... gxf6 {[%clk 0:01:47.3]} 27. Nb6 {[%clk 0:01:16.4]} 27... Rxc5
{[%clk 0:01:46.1]} 28. Qxc5 {[%clk 0:01:08.3]} 28... Bxc5 {[%clk 0:01:43.9]} 29.
Nxa8 {[%clk 0:01:07.6]} 29... Bb4 {[%clk 0:01:36.9]} 30. Re4 {[%clk 0:01:03.2]}
30... Ba5 {[%clk 0:01:36.1]} 31. Rxa4 {[%clk 0:01:01.1]} 31... Bd8 {[%clk
0:01:35.2]} 32. Ra7 {[%clk 0:00:58]} 32... Bc8 {[%clk 0:01:32.6]} 33. Nb6 {[%clk
0:00:56.3]} 33... Bxb6 {[%clk 0:01:31.3]} 34. Ra8 {[%clk 0:00:55.8]} 34... Kg7
{[%clk 0:01:29]} 35. Rxc8 {[%clk 0:00:54.8]} 35... Bd4 {[%clk 0:01:27.1]} 36. b3
{[%clk 0:00:52.9]} 36... f5 {[%clk 0:01:26.1]} 37. Rc7 {[%clk 0:00:48.9]} 37...
Kf6 {[%clk 0:01:24.3]} 38. Rxb7 {[%clk 0:00:47.8]} 38... Ke6 {[%clk 0:01:23.6]}
39. a4 {[%clk 0:00:45.8]} 39... h6 {[%clk 0:01:19.6]} 40. Kg2 {[%clk 0:00:44.2]}
40... Bc3 {[%clk 0:01:16.7]} 41. b4 {[%clk 0:00:42.3]} 41... f6 {[%clk
0:01:13.6]} 42. a5 {[%clk 0:00:41.6]} 42... Kd6 {[%clk 0:01:11.3]} 43. a6 {[%clk
0:00:40.7]} 43... Bd4 {[%clk 0:01:09.5]} 44. a7 {[%clk 0:00:39.4]} 44... Bxa7
{[%clk 0:01:08.9]} 45. Rxa7 {[%clk 0:00:39.3]} 45... c5 {[%clk 0:01:08.4]} 46.
bxc5+ {[%clk 0:00:38.3]} 46... Kxc5 {[%clk 0:01:08.3]} 47. Rf7 {[%clk
0:00:37.4]} 1-0

[Event "Live Chess"]
[Site "Chess.com"]
[Date "2024.06.01"]
[Round "-"]
[White "Mangoalo"]
[Black "Yegorych"]
[Result "0-1"]
[WhiteElo "1022"]
[BlackElo "1630"]
[TimeControl "300"]
[EndTime "11:40:36 PDT"]
[Termination "Yegorych won by checkmate"]

1. e4 {[%clk 0:04:58.2]} 1... d5 {[%clk 0:04:53.7]} 2. Nf3 {[%clk 0:04:58.1]}
2... dxe4 {[%clk 0:04:52.3]} 3. Ne5 {[%clk 0:04:56.1]} 3... Nf6 {[%clk
0:04:48.1]} 4. Qe2 {[%clk 0:04:53.7]} 4... Bf5 {[%clk 0:04:38.6]} 5. Nc3 {[%clk
0:04:49]} 5... Nc6 {[%clk 0:04:36.8]} 6. Nxc6 {[%clk 0:04:40.4]} 6... bxc6
{[%clk 0:04:36.7]} 7. g4 {[%clk 0:04:35.1]} 7... Bxg4 {[%clk 0:04:33]} 8. Qe3
{[%clk 0:04:34.1]} 8... e5 {[%clk 0:04:21.9]} 9. Nxe4 {[%clk 0:04:32.5]} 9...
Bd6 {[%clk 0:04:09.6]} 10. d4 {[%clk 0:04:26.3]} 10... exd4 {[%clk 0:04:03.4]}
11. Nxd6+ {[%clk 0:04:25]} 11... Kf8 {[%clk 0:03:56.7]} 12. Nxf7 {[%clk
0:04:19.3]} 12... Kxf7 {[%clk 0:03:51.7]} 13. Bc4+ {[%clk 0:04:12.3]} 13... Kf8
{[%clk 0:03:40.4]} 14. Qa3+ {[%clk 0:04:02.6]} 14... Qd6 {[%clk 0:03:34.7]} 15.
b4 {[%clk 0:03:57.7]} 15... Re8+ {[%clk 0:03:28.7]} 16. Kd2 {[%clk 0:03:47.6]}
16... Qf4+ {[%clk 0:03:12.5]} 17. Kd3 {[%clk 0:03:45.4]} 17... Bf5# {[%clk
0:03:09.2]} 0-1

[Event "Live Chess"]
[Site "Chess.com"]
[Date "2024.06.01"]
[Round "-"]
[White "MellowAesthetic"]
[Black "Crowded_House"]
[Result "1-0"]
[WhiteElo "2076"]
[BlackElo "1753"]
[TimeControl "300"]
[EndTime "11:40:38 PDT"]
[Termination "MellowAesthetic won by resignation"]

1. e4 {[%clk 0:04:57.6]} 1... e6 {[%clk 0:04:58.9]} 2. d4 {[%clk 0:04:56.4]}
2... d5 {[%clk 0:04:58.4]} 3. Nd2 {[%clk 0:04:56]} 3... dxe4 {[%clk 0:04:57]} 4.
Nxe4 {[%clk 0:04:55.4]} 4... Bd7 {[%clk 0:04:56.7]} 5. Nf3 {[%clk 0:04:54.2]}
5... Bc6 {[%clk 0:04:56.3]} 6. Bd3 {[%clk 0:04:53.6]} 6... Nf6 {[%clk
0:04:54.6]} 7. Nxf6+ {[%clk 0:04:51.6]} 7... Qxf6 {[%clk 0:04:52.5]} 8. Ne5
{[%clk 0:04:47]} 8... Bxg2 {[%clk 0:04:38.3]} 9. Rg1 {[%clk 0:04:45.9]} 9... Bh3
{[%clk 0:04:23.8]} 10. Bg5 {[%clk 0:04:42.3]} 10... Bg4 {[%clk 0:04:03.4]} 11.
Qxg4 {[%clk 0:04:29]} 11... Be7 {[%clk 0:03:58.1]} 12. Bxf6 {[%clk 0:04:24.3]}
12... Bxf6 {[%clk 0:03:57.7]} 13. O-O-O {[%clk 0:04:22.8]} 1-0

[Event "Live Chess"]
[Site "Chess.com"]
[Date "2024.06.01"]
[Round "-"]
[White "Brooms1989"]
[Black "koekoekoe"]
[Result "0-1"]
[WhiteElo "1096"]
[BlackElo "2068"]
[TimeControl "300"]
[EndTime "11:40:43 PDT"]
[Termination "koekoekoe won by resignation"]

1. e4 {[%clk 0:04:56.2]} 1... d5 {[%clk 0:04:59.9]} 2. exd5 {[%clk 0:04:54.9]}
2... Qxd5 {[%clk 0:04:59.8]} 3. d4 {[%clk 0:04:52.9]} 3... Nf6 {[%clk
0:04:58.6]} 4. c4 {[%clk 0:04:48.3]} 4... Qd8 {[%clk 0:04:56.7]} 5. Nf3 {[%clk
0:04:43.5]} 5... Bg4 {[%clk 0:04:54.6]} 6. Be2 {[%clk 0:04:41.9]} 6... e6 {[%clk
0:04:53.9]} 7. h3 {[%clk 0:04:40.4]} 7... Bh5 {[%clk 0:04:52.6]} 8. Nc3 {[%clk
0:04:39.3]} 8... c6 {[%clk 0:04:51.3]} 9. O-O {[%clk 0:04:37.6]} 9... Nbd7
{[%clk 0:04:49.4]} 10. Ne5 {[%clk 0:04:28.9]} 10... Bxe2 {[%clk 0:04:44.8]} 11.
Nxe2 {[%clk 0:04:25.9]} 11... Bd6 {[%clk 0:04:43]} 12. Nxd7 {[%clk 0:04:06.1]}
12... Qxd7 {[%clk 0:04:42.9]} 13. c5 {[%clk 0:04:05.2]} 13... Bc7 {[%clk
0:04:40.4]} 14. b4 {[%clk 0:03:52.6]} 14... O-O-O {[%clk 0:04:30.5]} 15. a4
{[%clk 0:03:42.3]} 15... e5 {[%clk 0:04:11.6]} 16. a5 {[%clk 0:03:17.4]} 16...
exd4 {[%clk 0:04:09.5]} 17. a6 {[%clk 0:03:15.3]} 17... b6 {[%clk 0:04:06.3]}
18. Bg5 {[%clk 0:03:08.8]} 18... h6 {[%clk 0:03:40.4]} 19. cxb6 {[%clk 0:02:52]}
19... Bxb6 {[%clk 0:03:37.9]} 20. Bf4 {[%clk 0:02:32]} 20... Nd5 {[%clk
0:03:11.3]} 21. Be5 {[%clk 0:02:04.5]} 21... Nf6 {[%clk 0:02:52.3]} 22. Qc1
{[%clk 0:01:39.5]} 22... d3 {[%clk 0:02:34]} 23. Ng3 {[%clk 0:01:20.2]} 23... d2
{[%clk 0:02:28.5]} 24. Qc2 {[%clk 0:01:11.2]} 24... Qd5 {[%clk 0:02:11.7]} 25.
Qf5+ {[%clk 0:00:55.6]} 25... Qd7 {[%clk 0:02:07.3]} 26. Qc2 {[%clk 0:00:40.7]}
26... Nd5 {[%clk 0:02:05.8]} 27. b5 {[%clk 0:00:32.9]} 27... c5 {[%clk
0:01:54.8]} 28. Ne4 {[%clk 0:00:31.1]} 28... Nb4 {[%clk 0:01:46.5]} 29. Nd6+
{[%clk 0:00:15.4]} 29... Qxd6 {[%clk 0:01:43]} 30. Bxd6 {[%clk 0:00:13.8]} 30...
Nxc2 {[%clk 0:01:38.7]} 0-1

[Event "Live Chess"]
[Site "Chess.com"]
[Date "2024.06.01"]
[Round "-"]
[White "JavaidMiah"]
[Black "RamsayFlayer"]
[Result "0-1"]
[WhiteElo "1182"]
[BlackElo "1953"]
[TimeControl "300"]
[EndTime "11:40:44 PDT"]
[Termination "RamsayFlayer won on time"]

1. c4 {[%clk 0:04:58.6]} 1... e5 {[%clk 0:04:59.3]} 2. Nc3 {[%clk 0:04:57.9]}
2... Nf6 {[%clk 0:04:58.6]} 3. g3 {[%clk 0:04:57.1]} 3... d5 {[%clk 0:04:58]} 4.
cxd5 {[%clk 0:04:55.8]} 4... Nxd5 {[%clk 0:04:57.7]} 5. Bg2 {[%clk 0:04:55.2]}
5... Nxc3 {[%clk 0:04:56.7]} 6. bxc3 {[%clk 0:04:54.6]} 6... c6 {[%clk
0:04:55.3]} 7. Nf3 {[%clk 0:04:54]} 7... Bd6 {[%clk 0:04:53.6]} 8. O-O {[%clk
0:04:52.8]} 8... O-O {[%clk 0:04:52.4]} 9. Rb1 {[%clk 0:04:45.4]} 9... Nd7
{[%clk 0:04:49.7]} 10. e4 {[%clk 0:04:42.3]} 10... Nb6 {[%clk 0:04:47.7]} 11. d3
{[%clk 0:04:40.6]} 11... Bg4 {[%clk 0:04:45.2]} 12. d4 {[%clk 0:04:29.3]} 12...
f5 {[%clk 0:04:41.2]} 13. exf5 {[%clk 0:04:10.4]} 13... Rxf5 {[%clk 0:04:38.6]}
14. h3 {[%clk 0:03:55.9]} 14... Bxf3 {[%clk 0:04:24.8]} 15. Bxf3 {[%clk
0:03:52.4]} 15... Qf8 {[%clk 0:04:24.4]} 16. Be4 {[%clk 0:03:41]} 16... Rf7
{[%clk 0:03:56.6]} 17. Qh5 {[%clk 0:03:35.1]} 17... g6 {[%clk 0:03:44]} 18. Bxg6
{[%clk 0:03:23.3]} 18... hxg6 {[%clk 0:03:42.4]} 19. Qxg6+ {[%clk 0:03:22.4]}
19... Rg7 {[%clk 0:03:37.3]} 20. Qe6+ {[%clk 0:03:17.3]} 20... Kh7 {[%clk
0:03:16.8]} 21. Bh6 {[%clk 0:02:26.3]} 21... Qe7 {[%clk 0:02:05.6]} 22. Qxe7
{[%clk 0:00:59.7]} 22... Rxe7 {[%clk 0:02:05.5]} 23. dxe5 {[%clk 0:00:58.4]}
23... Bxe5 {[%clk 0:01:52.8]} 24. Bg5 {[%clk 0:00:56.6]} 24... Rg7 {[%clk
0:01:46.9]} 25. Bd2 {[%clk 0:00:38.8]} 25... Nc4 {[%clk 0:01:39]} 26. Be1 {[%clk
0:00:24.2]} 26... Rd8 {[%clk 0:01:33]} 27. Rb4 {[%clk 0:00:19.4]} 27... b5
{[%clk 0:01:30.7]} 28. Kg2 {[%clk 0:00:08.4]} 28... Nd2 {[%clk 0:01:26]} 29.
Bxd2 {[%clk 0:00:05.2]} 29... Rxd2 {[%clk 0:01:25.9]} 0-1

[Event "Live Chess"]
[Site "Chess.com"]
[Date "2024.06.01"]
[Round "-"]
[White "grillage"]
[Black "Andysav3"]
[Result "0-1"]
[WhiteElo "1871"]
[BlackElo "1875"]
[TimeControl "300"]
[EndTime "11:40:46 PDT"]
[Termination "Andysav3 won by resignation"]

1. d4 {[%clk 0:04:57.8]} 1... Nf6 {[%clk 0:04:58.5]} 2. Nf3 {[%clk 0:04:57.1]}
2... e6 {[%clk 0:04:54.9]} 3. c4 {[%clk 0:04:56.1]} 3... d5 {[%clk 0:04:53.4]}
4. cxd5 {[%clk 0:04:54.9]} 4... exd5 {[%clk 0:04:48]} 5. Nc3 {[%clk 0:04:53.3]}
5... Be7 {[%clk 0:04:44.2]} 6. Bg5 {[%clk 0:04:51]} 6... O-O {[%clk 0:04:43]} 7.
e3 {[%clk 0:04:49.1]} 7... Nbd7 {[%clk 0:04:27.9]} 8. Bd3 {[%clk 0:04:46.9]}
8... c5 {[%clk 0:04:22.6]} 9. Rc1 {[%clk 0:04:42]} 9... b6 {[%clk 0:04:07.6]}
10. O-O {[%clk 0:04:39.5]} 10... Bb7 {[%clk 0:04:04.2]} 11. Bf4 {[%clk
0:04:33.5]} 11... Ne4 {[%clk 0:03:50.4]} 12. Nb5 {[%clk 0:04:17.1]} 12... a6
{[%clk 0:03:32.1]} 13. Nd6 {[%clk 0:04:08.7]} 13... Nxd6 {[%clk 0:03:25.5]} 14.
dxc5 {[%clk 0:03:58]} 14... bxc5 {[%clk 0:03:23.6]} 15. Ne5 {[%clk 0:03:40]}
15... Nxe5 {[%clk 0:03:15.3]} 16. Bxe5 {[%clk 0:03:38.6]} 16... Bf6 {[%clk
0:02:59.4]} 17. Bf4 {[%clk 0:03:27.3]} 17... Rc8 {[%clk 0:02:48.1]} 18. Qh5
{[%clk 0:03:24.6]} 18... g6 {[%clk 0:02:42.4]} 19. Qxd5 {[%clk 0:03:23.3]} 19...
Bxd5 {[%clk 0:02:40.2]} 0-1

[Event "Live Chess"]
[Site "Chess.com"]
[Date "2024.06.01"]
[Round "-"]
[White "IanCalvert2"]
[Black "MaksymYurii"]
[Result "1-0"]
[WhiteElo "1513"]
[BlackElo "934"]
[TimeControl "300"]
[EndTime "11:40:55 PDT"]
[Termination "IanCalvert2 won on time"]

1. b3 {[%clk 0:04:56.5]} 1... e5 {[%clk 0:04:59.5]} 2. Bb2 {[%clk 0:04:54.9]}
2... Nc6 {[%clk 0:04:57.5]} 3. e3 {[%clk 0:04:53.9]} 3... Nf6 {[%clk 0:04:56.2]}
4. Nf3 {[%clk 0:04:48.6]} 4... Be7 {[%clk 0:04:54.2]} 5. Nxe5 {[%clk 0:04:43.7]}
5... Nxe5 {[%clk 0:04:52.2]} 6. Bxe5 {[%clk 0:04:41.9]} 6... d6 {[%clk
0:04:51.4]} 7. Bb2 {[%clk 0:04:39.5]} 7... Ne4 {[%clk 0:04:44.5]} 8. Be2 {[%clk
0:04:30.3]} 8... Bf6 {[%clk 0:04:42.6]} 9. Qc1 {[%clk 0:04:28]} 9... Bxb2 {[%clk
0:03:59.5]} 10. Qxb2 {[%clk 0:04:23.9]} 10... O-O {[%clk 0:03:57.9]} 11. O-O
{[%clk 0:04:06.8]} 11... Nf6 {[%clk 0:03:51.4]} 12. Bf3 {[%clk 0:03:59.9]} 12...
Bg4 {[%clk 0:03:49.3]} 13. Bxg4 {[%clk 0:03:47.3]} 13... Nxg4 {[%clk 0:03:47.3]}
14. h3 {[%clk 0:03:46.3]} 14... Nh6 {[%clk 0:03:33.8]} 15. Nc3 {[%clk
0:03:34.4]} 15... Nf5 {[%clk 0:03:31.6]} 16. Nd5 {[%clk 0:03:27.6]} 16... Nh4
{[%clk 0:03:26.2]} 17. f4 {[%clk 0:03:12.5]} 17... c6 {[%clk 0:03:07.9]} 18. Nc3
{[%clk 0:03:08.7]} 18... Qf6 {[%clk 0:03:04.2]} 19. Rab1 {[%clk 0:02:48.5]}
19... Qg6 {[%clk 0:03:00.2]} 20. Kh2 {[%clk 0:02:36.7]} 20... Nf5 {[%clk
0:02:55.5]} 21. g4 {[%clk 0:02:24.7]} 21... Nh6 {[%clk 0:02:50]} 22. Ne2 {[%clk
0:02:13.7]} 22... Nxg4+ {[%clk 0:02:46.2]} 23. hxg4 {[%clk 0:02:10.6]} 23...
Qxg4 {[%clk 0:02:45]} 24. Ng3 {[%clk 0:01:53.2]} 24... h5 {[%clk 0:02:40.3]} 25.
Rg1 {[%clk 0:01:45.2]} 25... h4 {[%clk 0:02:35]} 26. Nf5 {[%clk 0:01:38.9]}
26... Qe2+ {[%clk 0:00:47.6]} 27. Rg2 {[%clk 0:01:29.3]} 27... Qxg2+ {[%clk
0:00:45.7]} 28. Kxg2 {[%clk 0:01:26.4]} 28... f6 {[%clk 0:00:44]} 29. Kh3 {[%clk
0:01:19.4]} 29... Kf7 {[%clk 0:00:42]} 30. Nxd6+ {[%clk 0:01:12.2]} 30... Kg6
{[%clk 0:00:36.9]} 31. Rg1+ {[%clk 0:01:07.5]} 31... Kh7 {[%clk 0:00:28.3]} 32.
Qd4 {[%clk 0:00:55]} 32... Rad8 {[%clk 0:00:17.6]} 33. Qe4+ {[%clk 0:00:49.9]}
33... Kh8 {[%clk 0:00:14.9]} 34. Nf5 {[%clk 0:00:44.1]} 34... Rde8 {[%clk
0:00:11.7]} 35. Qf3 {[%clk 0:00:40.5]} 35... Rf7 {[%clk 0:00:06.2]} 36. Nxh4
{[%clk 0:00:37.7]} 36... g5 {[%clk 0:00:03.6]} 37. Ng6+ {[%clk 0:00:35.4]} 37...
Kg7 {[%clk 0:00:01.5]} 38. f5 {[%clk 0:00:32.9]} 1-0

[Event "Live Chess"]
[Site "Chess.com"]
[Date "2024.06.01"]
[Round "-"]
[White "gmnorfolk"]
[Black "bobby_jamesFischer86"]
[Result "0-1"]
[WhiteElo "2077"]
[BlackElo "1618"]
[TimeControl "300"]
[EndTime "11:41:00 PDT"]
[Termination "bobby_jamesFischer86 won by resignation"]

1. c4 {[%clk 0:04:57.2]} 1... c5 {[%clk 0:04:55.7]} 2. Nc3 {[%clk 0:04:55.2]}
2... Nc6 {[%clk 0:04:53.3]} 3. Nf3 {[%clk 0:04:54]} 3... b6 {[%clk 0:04:51.9]}
4. d4 {[%clk 0:04:52.9]} 4... cxd4 {[%clk 0:04:50.2]} 5. Nxd4 {[%clk 0:04:52.4]}
5... Bb7 {[%clk 0:04:49.1]} 6. e4 {[%clk 0:04:50.8]} 6... e6 {[%clk 0:04:41.3]}
7. Be3 {[%clk 0:04:28.9]} 7... Nf6 {[%clk 0:04:35.9]} 8. f3 {[%clk 0:04:27.3]}
8... d6 {[%clk 0:04:31.6]} 9. Qd2 {[%clk 0:04:25.9]} 9... Be7 {[%clk 0:04:29.9]}
10. O-O-O {[%clk 0:04:24]} 10... Nxd4 {[%clk 0:04:21.1]} 11. Bxd4 {[%clk
0:04:12.7]} 11... O-O {[%clk 0:04:15.4]} 12. g4 {[%clk 0:04:10.7]} 12... Rc8
{[%clk 0:04:08.5]} 13. g5 {[%clk 0:04:07.2]} 13... Nd7 {[%clk 0:04:07.3]} 14. h4
{[%clk 0:04:06]} 14... Ne5 {[%clk 0:04:02.6]} 15. Qf2 {[%clk 0:03:59.1]} 15...
Nxc4 {[%clk 0:03:55.4]} 16. Bxc4 {[%clk 0:03:57.8]} 16... Rxc4 {[%clk
0:03:53.6]} 17. Rdg1 {[%clk 0:03:55.7]} 17... d5 {[%clk 0:03:47.6]} 18. exd5
{[%clk 0:03:47.2]} 18... Bxd5 {[%clk 0:03:42.4]} 19. g6 {[%clk 0:03:42.7]} 19...
fxg6 {[%clk 0:03:38.6]} 20. h5 {[%clk 0:03:41.6]} 20... Bxf3 {[%clk 0:03:20.5]}
21. hxg6 {[%clk 0:03:36.6]} 21... h6 {[%clk 0:03:14.9]} 22. Qe3 {[%clk
0:03:13.7]} 22... Bxh1 {[%clk 0:02:54.4]} 23. Qxe6+ {[%clk 0:03:01]} 23... Kh8
{[%clk 0:02:43.8]} 24. Be5 {[%clk 0:02:35.5]} 24... Bg5+ {[%clk 0:01:48.7]} 25.
Kb1 {[%clk 0:02:30]} 25... Qd3+ {[%clk 0:01:39.4]} 26. Ka1 {[%clk 0:02:23.8]}
26... Rf1+ {[%clk 0:01:37.6]} 27. Rxf1 {[%clk 0:02:18.8]} 27... Qxf1+ {[%clk
0:01:30.5]} 28. Nb1 {[%clk 0:02:17.6]} 28... Qxb1+ {[%clk 0:01:18.7]} 29. Kxb1
{[%clk 0:02:10.6]} 29... Be4+ {[%clk 0:01:17.1]} 0-1

[Event "Live Chess"]
[Site "Chess.com"]
[Date "2024.06.01"]
[Round "-"]
[White "Nazarenko_vital"]
[Black "hisaveliy"]
[Result "1-0"]
[WhiteElo "1472"]
[BlackElo "633"]
[TimeControl "300"]
[EndTime "11:41:13 PDT"]
[Termination "Nazarenko_vital won by checkmate"]

1. e4 {[%clk 0:04:56.2]} 1... d6 {[%clk 0:04:57.6]} 2. d4 {[%clk 0:04:54]} 2...
Nf6 {[%clk 0:04:54.6]} 3. Bd3 {[%clk 0:04:49]} 3... g6 {[%clk 0:04:52.5]} 4. Nc3
{[%clk 0:04:47.3]} 4... Bg7 {[%clk 0:04:51.1]} 5. h4 {[%clk 0:04:45.3]} 5... O-O
{[%clk 0:04:48.4]} 6. h5 {[%clk 0:04:44.3]} 6... Nxh5 {[%clk 0:04:42.7]} 7. Be2
{[%clk 0:04:38]} 7... Nf6 {[%clk 0:04:40.5]} 8. Bg5 {[%clk 0:04:33.2]} 8... Nc6
{[%clk 0:04:26.3]} 9. Nf3 {[%clk 0:04:24.4]} 9... e5 {[%clk 0:04:15.9]} 10. d5
{[%clk 0:04:16.4]} 10... Nd4 {[%clk 0:04:01]} 11. Nxd4 {[%clk 0:04:13.9]} 11...
exd4 {[%clk 0:03:48.1]} 12. Qxd4 {[%clk 0:04:12.6]} 12... Qe8 {[%clk 0:03:36.9]}
13. Bxf6 {[%clk 0:04:01.1]} 13... Bxf6 {[%clk 0:03:34.8]} 14. Qxf6 {[%clk
0:03:59.6]} 14... Qe5 {[%clk 0:03:28.9]} 15. Qh4 {[%clk 0:03:55]} 15... Bd7
{[%clk 0:03:07.6]} 16. Qxh7# {[%clk 0:03:51.4]} 1-0

[Event "Live Chess"]
[Site "Chess.com"]
[Date "2024.06.01"]
[Round "-"]
[White "WilliamofOrange16th"]
[Black "KeithArkell"]
[Result "1/2-1/2"]
[WhiteElo "1973"]
[BlackElo "2496"]
[TimeControl "300"]
[EndTime "11:41:20 PDT"]
[Termination "Game drawn by agreement"]

1. e4 {[%clk 0:04:57.2]} 1... c6 {[%clk 0:04:59.4]} 2. d4 {[%clk 0:04:49.9]}
2... d5 {[%clk 0:04:59.3]} 3. exd5 {[%clk 0:04:42.8]} 3... cxd5 {[%clk
0:04:58.5]} 4. Bd3 {[%clk 0:04:36.4]} 4... Nc6 {[%clk 0:04:56.7]} 5. c3 {[%clk
0:04:19.8]} 5... Nf6 {[%clk 0:04:32.1]} 6. Nf3 {[%clk 0:04:15.1]} 6... Bg4
{[%clk 0:04:30.6]} 7. h3 {[%clk 0:04:09.4]} 7... Bxf3 {[%clk 0:04:24.1]} 8. Qxf3
{[%clk 0:04:08.2]} 8... e6 {[%clk 0:04:23.8]} 9. O-O {[%clk 0:04:05.7]} 9... Be7
{[%clk 0:04:22.9]} 10. Bg5 {[%clk 0:03:49.4]} 10... O-O {[%clk 0:04:22.8]} 11.
Nd2 {[%clk 0:03:45.5]} 11... g6 {[%clk 0:04:19.6]} 12. Rae1 {[%clk 0:03:26.9]}
12... Ne4 {[%clk 0:04:12.5]} 13. Bh6 {[%clk 0:03:19]} 13... Nxd2 {[%clk
0:04:10.5]} 14. Bxd2 {[%clk 0:03:18.6]} 14... Bg5 {[%clk 0:04:09.3]} 15. Bxg5
{[%clk 0:03:02.5]} 15... Qxg5 {[%clk 0:04:09.2]} 16. Qe3 {[%clk 0:02:58.2]}
16... Qxe3 {[%clk 0:04:07.8]} 17. Rxe3 {[%clk 0:02:58.1]} 17... Rab8 {[%clk
0:04:06.6]} 18. a4 {[%clk 0:02:53.9]} 18... a6 {[%clk 0:04:05.5]} 19. b4 {[%clk
0:02:51.3]} 19... Rfc8 {[%clk 0:04:03.7]} 20. Be2 {[%clk 0:02:45.3]} 20... a5
{[%clk 0:04:02.7]} 21. b5 {[%clk 0:02:41.9]} 21... Na7 {[%clk 0:03:58.5]} 22.
Rc1 {[%clk 0:02:41.2]} 22... b6 {[%clk 0:03:54.4]} 23. c4 {[%clk 0:02:40.4]}
23... dxc4 {[%clk 0:03:53.1]} 24. Rxc4 {[%clk 0:02:40.3]} 24... Rxc4 {[%clk
0:03:51.3]} 25. Bxc4 {[%clk 0:02:40.2]} 25... Rd8 {[%clk 0:03:48.9]} 26. Rd3
{[%clk 0:02:32.8]} 26... Nc8 {[%clk 0:03:46.4]} 27. d5 {[%clk 0:02:27.8]} 27...
e5 {[%clk 0:03:45.8]} 28. Bb3 {[%clk 0:02:22.1]} 28... Nd6 {[%clk 0:03:44.6]}
29. Rc3 {[%clk 0:02:13.1]} 29... Rc8 {[%clk 0:03:34.1]} 30. Rc6 {[%clk
0:02:03.2]} 30... Rxc6 {[%clk 0:03:33.2]} 31. dxc6 {[%clk 0:02:00.5]} 31... Kf8
{[%clk 0:03:32.4]} 32. Kf1 {[%clk 0:01:55.3]} 32... Ke7 {[%clk 0:03:31.6]} 33.
Ke2 {[%clk 0:01:54.5]} 33... Nf5 {[%clk 0:03:26.6]} 34. Kd3 {[%clk 0:01:39.1]}
34... f6 {[%clk 0:03:22]} 35. g3 {[%clk 0:01:21.9]} 35... Kd6 {[%clk 0:03:16.1]}
36. Bg8 {[%clk 0:01:17.2]} 36... h6 {[%clk 0:03:15.2]} 37. Bf7 {[%clk
0:01:12.8]} 37... g5 {[%clk 0:03:08.3]} 38. Bg6 {[%clk 0:01:06.7]} 38... Ne7
{[%clk 0:03:06.5]} 39. Be4 {[%clk 0:01:03.8]} 39... f5 {[%clk 0:03:05.7]} 40.
Bg2 {[%clk 0:01:02.2]} 40... h5 {[%clk 0:02:48.7]} 41. Kc4 {[%clk 0:01:01.4]}
41... g4 {[%clk 0:02:44.6]} 42. h4 {[%clk 0:00:59.5]} 42... Ng8 {[%clk
0:02:39.7]} 43. Bf1 {[%clk 0:00:57.8]} 43... Nf6 {[%clk 0:02:38.1]} 44. Bd3
{[%clk 0:00:56.7]} 44... f4 {[%clk 0:02:33.3]} 45. Bf5 {[%clk 0:00:45.1]} 45...
fxg3 {[%clk 0:02:20.8]} 46. fxg3 {[%clk 0:00:45]} 46... Nd5 {[%clk 0:02:19.5]}
47. Bg6 {[%clk 0:00:41.7]} 47... Ne3+ {[%clk 0:02:17.5]} 48. Kd3 {[%clk
0:00:41.2]} 48... Nf1 {[%clk 0:02:16.5]} 49. Bxh5 {[%clk 0:00:39.8]} 49... e4+
{[%clk 0:02:15.5]} 50. Kxe4 {[%clk 0:00:36.7]} 50... Nxg3+ {[%clk 0:02:14.6]}
51. Kf4 {[%clk 0:00:36.5]} 51... Nxh5+ {[%clk 0:02:13.6]} 52. Kxg4 {[%clk
0:00:36.2]} 52... Nf6+ {[%clk 0:02:07.5]} 53. Kf5 {[%clk 0:00:35.6]} 1/2-1/2